bitfinex/quotes_ETHUSD_20240916
["timestamp","ask_amount","ask_price","bid_price","bid_amount"]
[1726449281345,4.37369,2286.4,2285.7,4.37487]
[1726449281649,0.08996088,2286.3,2285.6,3.369108]
[1726449281849,4.46385088,2286.3,2285.7,0.7744468]
[1726449282054,4.46385088,2286.3,2285.6,6.64251]
[1726449283105,0.08996088,2286.3,2285.7,4.37502]
[1726449283246,0.08996088,2286.3,2285.7,5.47679]
[1726449283445,4.37233,2287.2,2286.3,4.37373]
[1726449283644,2.45637425,2288.0,2285.8,10.11577349]
[1726449283645,0.08909446,2286.2,2286.0,4.37437]
[1726449283957,4.3727,2287.0,2286.2,4.374]
[1726449284285,4.37147,2287.6,2286.6,4.37327]
[1726449284286,0.08620341,2286.9,2286.6,4.37327]
[1726449284444,0.08620341,2286.9,2286.6,4.37329]
[1726449284643,4.37143,2287.6,2286.7,4.37297]
[1726449284860,4.37143,2287.6,2286.8,4.3729]
[1726449284861,4.37158,2287.5,2286.8,4.3729]
[1726449285090,0.45637425,2288.0,2287.0,4.3725]
[1726449285091,4.37102,2287.8,2287.0,4.3725]
[1726449285244,4.3703,2288.2,2287.2,2.3834]
[1726449285442,6.36937,2288.7,2287.2,6.75555]
[1726449285443,4.37096,2287.9,2287.2,6.75555]
[1726449285681,4.37096,2287.9,2287.2,2.3834]
[1726449285891,4.37049,2288.1,2287.2,2.3834]
[1726449286045,4.37049,2288.1,2287.3,4.37183]
[1726449286245,4.37064,2288.0,2287.3,4.37183]
[1726449286585,4.36907,2288.9,2287.9,4.37068]
[1726449286796,4.36839,2289.2,2288.3,6.73118]
[1726449286995,4.36839,2289.2,2288.4,4.36986]
[1726449287289,4.3672,2289.8,2288.4,4.36986]
[1726449287290,4.36725,2289.8,2289.0,4.36871]
[1726449287491,0.0771006,2289.9,2289.0,4.36865]
[1726449287789,0.0771006,2289.9,2288.5,5.479774]
[1726449287790,0.0771006,2289.9,2289.5,4.36762]
[1726449288005,0.0771006,2289.9,2289.8,8.73438]
[1726449288144,0.0771006,2289.9,2289.6,0.08734765]
[1726449288145,4.82059743,2291.2,2290.3,4.36608]
[1726449288346,0.0771006,2291.3,2290.6,4.3656]
[1726449288644,0.0771006,2291.3,2290.4,0.08731063]
[1726449288645,0.0771006,2291.3,2290.4,4.36591]
[1726449288780,0.0771006,2291.3,2290.6,4.36566]
[1726449288953,0.0771006,2291.3,2290.8,4.36522]
[1726449289157,0.0771006,2291.3,2290.8,2.4468]
[1726449289390,0.0771006,2291.3,2290.8,6.81192]
[1726449289590,4.4415106,2291.3,2290.8,2.4468]
[1726449289790,0.0771006,2291.3,2290.8,2.4468]
[1726449290098,0.0771006,2291.3,2290.8,6.8119]
[1726449290301,4.36469,2291.2,2290.3,2.4468]
[1726449290465,4.36469,2291.2,2290.4,4.36587]
[1726449290664,0.08256697,2291.1,2290.4,4.36587]
[1726449291069,0.08256697,2291.1,2290.4,4.366]
[1726449291267,4.44728697,2291.1,2290.4,4.366]
[1726449291472,4.44736697,2291.1,2290.4,4.366]
[1726449291772,0.08256697,2291.1,2290.3,2.4468]
[1726449291960,4.36494,2291.0,2290.3,2.4468]
[1726449292163,0.08530477,2290.9,2290.3,6.81302]
[1726449292405,0.08530477,2290.9,2290.4,1.117941]
[1726449292559,0.0771006,2291.3,2290.3,2.4468]
[1726449292869,4.36472,2291.1,2290.3,6.81288]
[1726449293072,0.08509128,2291.2,2290.3,6.81287]
[1726449293291,0.0771006,2291.3,2289.9,4.36689]
[1726449293292,4.36522,2290.9,2289.9,4.36689]
[1726449293598,0.08504507,2290.8,2289.9,4.36689]
[1726449293905,4.36549,2290.7,2289.9,4.36687]
[1726449294196,0.08182159,2290.6,2290.5,4.36585]
[1726449294367,0.0771006,2291.3,2290.6,4.36559]
[1726449294567,0.08182159,2291.2,2290.6,4.36551]
[1726449294770,0.08182159,2291.2,2290.8,4.36512]
[1726449295027,0.0771006,2291.3,2290.9,2.57259499]
[1726449295158,0.0771006,2291.3,2291.2,8.72904]
[1726449295606,0.0771006,2291.3,2291.0,4.6219795]
[1726449295788,0.08182159,2291.3,2291.2,4.36434]
[1726449296000,4.3631,2292.0,2291.1,4.4519643]
[1726449296223,0.08182159,2291.3,2291.2,4.36452]
[1726449296526,4.36271,2292.2,2291.3,4.36419]
[1726449296527,4.36266,2292.2,2291.3,4.36419]
[1726449296683,4.36305,2292.0,2291.3,4.36419]
[1726449296891,4.36302,2292.0,2291.3,4.36419]
[1726449297328,0.08182159,2291.9,2291.3,4.36419]
[1726449297822,0.0771006,2292.7,2291.1,4.36466]
[1726449297823,4.44535159,2291.8,2291.1,4.36457]
[1726449298021,0.08182159,2291.8,2291.1,4.36457]
[1726449298331,4.3634,2291.8,2291.1,4.36457]
[1726449298535,4.36307,2292.0,2291.1,9.85063]
[1726449298536,0.08182159,2291.7,2291.1,9.85063]
[1726449298688,0.08182159,2291.7,2290.9,6.8503]
[1726449299028,2.0,2292.6,2290.4,4.802584]
[1726449299029,4.3647,2291.2,2290.4,2.874204]
[1726449299210,0.08182159,2291.6,2290.4,2.874204]
[1726449299211,4.36476,2291.1,2290.4,2.4376]
[1726449299542,4.36492,2291.0,2290.4,6.80352]
[1726449299687,4.44674159,2291.0,2290.4,6.80352]
[1726449300110,0.08182159,2291.0,2290.4,6.80352]
[1726449300454,0.08182159,2291.0,2289.9,4.36693]
[1726449300455,0.08182159,2291.0,2289.9,2.2516]
[1726449300599,4.36664,2290.1,2289.5,4.36775]
[1726449300799,4.36644,2290.2,2288.9,2.4684]
[1726449301040,4.36778,2289.5,2288.9,3.152137]
[1726449301222,4.36837,2289.2,2288.3,6.8383]
[1726449301429,4.44985159,2289.4,2288.3,2.4684]
[1726449301632,4.45028215,2289.1,2288.5,4.36964]
[1726449301842,5.60165,2289.8,2289.1,4.36843]
[1726449302013,0.08175215,2289.0,2288.9,8.73782]
[1726449302344,1.2343,2290.3,2288.8,0.29331854]
[1726449302539,4.36748,2289.7,2288.9,4.36877]
[1726449302742,4.36748,2289.7,2288.9,8.73754]
[1726449302928,4.36711,2289.9,2289.0,0.08736653]
[1726449303252,4.36648,2290.2,2289.3,4.36813]
[1726449303397,4.36648,2290.2,2289.4,0.52415878]
[1726449303398,0.08175215,2289.8,2289.4,0.52415878]
[1726449303594,4.36608,2290.4,2289.4,0.08734578]
[1726449303807,4.36576,2290.6,2289.9,4.36684]
[1726449304041,1.2343,2291.4,2290.0,0.08733275]
[1726449304213,4.36468,2291.2,2290.5,4.36584]
[1726449304413,4.36384,2291.6,2290.8,4.36527]
[1726449304744,4.36384,2291.6,2290.5,3.194973]
[1726449304745,0.00702672,2291.6,2291.0,4.36475]
[1726449305049,0.00702672,2291.6,2291.1,0.08728717]
[1726449305536,0.00702672,2291.6,2291.2,4.3644]
[1726449305697,0.00702672,2291.6,2291.3,0.08727177]
[1726449305898,0.00702672,2291.6,2291.5,2.4328]
[1726449306612,0.00702672,2291.6,2291.5,2.52006977]
[1726449306814,0.00702672,2291.6,2291.5,2.4328]
[1726449307458,0.00702672,2291.6,2291.5,6.79675]
[1726449307660,0.00702672,2291.6,2291.5,16.29159077]
[1726449307818,0.0771006,2292.7,2292.1,4.36267]
[1726449308029,0.0771006,2292.7,2292.4,4.36221]
[1726449308348,0.0771006,2292.7,2292.1,4.36279]
[1726449308553,0.0771006,2292.7,2292.2,0.08723624]
[1726449309056,0.0771006,2292.7,2292.2,4.44984624]
[1726449309475,0.0771006,2292.7,2292.2,4.44980624]
[1726449309968,0.0771006,2292.7,2292.3,4.36241]
[1726449310573,4.36257,2292.3,2291.5,3.112479]
[1726449310862,4.36247,2292.3,2291.7,4.3634]
[1726449311068,4.36215,2292.5,2291.7,4.3634]
[1726449311069,0.0771006,2292.7,2291.9,4.36313]
[1726449311370,0.08241038,2292.2,2292.0,0.08724453]
[1726449311588,4.3635,2291.8,2291.2,4.36449]
[1726449311720,4.3631,2292.0,2291.3,4.36421]
[1726449312036,0.08241038,2291.9,2291.8,4.36332]
[1726449312235,4.36225,2292.4,2291.8,2.4232]
[1726449312442,0.08241038,2291.9,2291.8,2.859532]
[1726449312660,4.36193,2292.6,2291.8,2.5104481]
[1726449312853,4.36193,2292.6,2291.9,4.36306]
[1726449313058,4.36193,2292.6,2292.0,0.08724693]
[1726449313662,4.36193,2292.6,2292.0,4.36298]
[1726449313826,4.36193,2292.6,2291.9,4.36306]
[1726449314035,0.0771006,2292.7,2291.4,13.01691093]
[1726449314036,0.0771006,2292.7,2291.4,2.2743]
[1726449314384,4.36408,2291.5,2290.3,2.2743]
[1726449314673,4.36468,2291.2,2290.6,4.36554]
[1726449314988,4.36414,2291.4,2290.8,4.36523]
[1726449315150,4.36414,2291.4,2290.4,0.446609]
[1726449315151,4.36423,2291.4,2290.4,4.812519]
[1726449315350,4.36388,2291.6,2291.0,4.36487]
[1726449315653,4.36388,2291.6,2290.5,0.79598283]
[1726449315654,4.36344,2291.8,2290.9,4.36496]
[1726449315863,4.36344,2291.8,2291.1,4.36459]
[1726449315864,4.36352,2291.8,2291.1,4.36459]
[1726449316065,4.36388,2291.6,2290.4,0.446609]
[1726449316377,4.36345,2291.8,2291.1,4.36463]
[1726449316794,4.36408,2291.5,2290.9,4.36499]
[1726449316941,4.36408,2291.5,2290.7,4.3654]
[1726449317240,4.36365,2291.7,2290.4,0.446609]
[1726449317439,4.36413,2291.5,2290.9,4.36494]
[1726449318091,4.36413,2291.5,2290.7,4.36538]
[1726449318092,1.2414,2291.9,2290.5,4.6378709]
[1726449318243,4.36473,2291.1,2290.5,4.36585]
[1726449318442,4.2414,2291.9,2290.5,4.36585]
[1726449318443,8.72894,2291.3,2290.7,4.36535]
[1726449318637,8.72817,2291.5,2290.8,4.36522]
[1726449318842,4.2414,2291.9,2291.2,4.36439]
[1726449318843,5.60471,2291.9,2291.2,4.36439]
[1726449319089,5.60471,2291.9,2290.5,0.664015]
[1726449319090,4.36466,2291.2,2290.5,5.029785]
[1726449319388,4.36415,2291.4,2290.7,4.36535]
[1726449319555,4.36444,2291.3,2290.7,4.36535]
[1726449319883,4.36444,2291.3,2290.3,2.2743]
[1726449319884,4.36431,2291.4,2290.8,4.36515]
[1726449320099,4.36387,2291.6,2291.0,4.36476]
[1726449320385,9.96801,2291.9,2291.1,4.36469]
[1726449320554,4.36351,2291.8,2291.2,4.36447]
[1726449320757,1.2414,2292.3,2291.4,4.3641]
[1726449321070,4.36339,2291.8,2291.0,4.36488]
[1726449321273,4.36339,2291.8,2289.9,4.36687]
[1726449321274,1.2414,2291.5,2290.4,2.4505]
[1726449321441,4.36602,2290.5,2289.9,4.36685]
[1726449321645,4.36599,2290.5,2289.8,7.254251]
[1726449321851,4.36491,2291.0,2290.2,4.36642]
[1726449322149,1.2414,2291.2,2290.0,4.36669]
[1726449322379,1.2414,2291.2,2289.8,6.81756]
[1726449322588,4.36743,2289.7,2289.1,4.36839]
[1726449322758,4.36743,2289.7,2289.0,6.82347]
[1726449322943,4.36789,2289.5,2289.0,2.4549]
[1726449323149,1.2414,2290.3,2289.0,2.4549]
[1726449323368,4.36851,2289.2,2288.7,0.005]
[1726449323791,4.36848,2289.2,2288.7,0.005]
[1726449323955,4.36698,2290.0,2288.7,0.005]
[1726449323956,4.36829,2289.3,2288.7,0.005]
[1726449324287,4.36764,2289.6,2289.0,4.36859]
[1726449324590,4.36764,2289.6,2288.7,0.77529689]
[1726449324591,4.36733,2289.8,2289.1,4.45576141]
[1726449324790,4.3669,2290.0,2289.4,4.36794]
[1726449324961,4.3669,2290.0,2289.4,2.3616]
[1726449325165,4.36591,2290.5,2289.4,2.3616]
[1726449325166,4.36589,2290.5,2289.5,0.08734693]
[1726449325362,1.2414,2290.7,2290.1,4.36661]
[1726449325614,1.2414,2290.7,2289.9,4.36696]
[1726449325889,1.2414,2290.7,2289.5,0.24489469]
[1726449325890,1.2414,2290.7,2289.7,4.36725]
[1726449326095,5.60694,2290.7,2288.9,2.4107]
[1726449326247,4.36763,2289.6,2288.9,7.216833]
[1726449326444,4.36812,2289.4,2288.9,2.4107]
[1726449326689,4.3681,2289.4,2288.9,2.4107]
[1726449327061,0.07485966,2289.3,2288.9,2.4107]
[1726449327499,0.07485966,2289.3,2289.1,4.36851]
[1726449327701,0.07485966,2289.3,2288.9,3.526088]
[1726449327702,4.36775,2289.6,2288.9,7.894878]
[1726449327863,0.53043946,2289.2,2288.9,2.4107]
[1726449328194,0.45579669,2289.2,2288.9,2.4107]
[1726449328697,0.07465827,2289.1,2288.9,2.4107]
[1726449329213,0.07465827,2289.1,2288.7,0.005]
[1726449329431,4.3691,2288.8,2288.7,0.005]
[1726449329689,8.7382,2288.8,2288.7,0.005]
[1726449329900,13.1073,2288.8,2288.7,0.005]
[1726449330077,13.1818653,2288.8,2288.7,0.005]
[1726449330252,18.7923653,2288.8,2288.7,0.005]
[1726449330444,14.4232653,2288.8,2288.7,0.005]
[1726449331901,10.0541653,2288.8,2288.7,0.005]
[1726449332495,14.4232653,2288.8,2288.7,0.005]
[1726449332650,10.0541653,2288.8,2288.7,0.005]
[1726449334464,17.9732653,2288.8,2288.7,0.005]
[1726449334797,22.910181,2288.8,2288.7,0.005]
[1726449334961,4.37132,2287.7,2287.1,6.7974206]
[1726449335493,0.07370491,2287.6,2287.1,6.7974106]
[1726449335789,0.07370491,2287.6,2287.1,3.54220466]
[1726449335992,0.07370491,2287.6,2287.1,0.0771006]
[1726449336198,14.35285,2287.2,2287.1,0.0771006]
[1726449336699,14.35285,2287.2,2285.7,4.4520306]
[1726449336700,4.37445,2286.1,2285.7,0.0771006]
[1726449337004,4.37447,2286.0,2285.7,0.0771006]
[1726449337155,0.07215434,2286.0,2285.7,0.0771006]
[1726449337596,4.37396,2286.3,2285.7,0.0771006]
[1726449337597,4.37483,2285.8,2285.7,0.0771006]
[1726449337795,4.44698434,2285.8,2285.7,0.0771006]
[1726449338133,8.82181434,2285.8,2285.7,0.0771006]
[1726449338273,0.07215434,2285.8,2285.7,0.0771006]
[1726449338617,5.6094,2286.8,2286.0,4.3744]
[1726449338785,4.37335,2286.6,2286.1,0.43744]
[1726449339115,1.2364,2287.2,2285.8,4.4622165]
[1726449339116,4.37296,2286.8,2286.2,4.37405]
[1726449339314,4.37263,2287.0,2285.9,0.78824415]
[1726449339514,4.3732,2286.7,2286.0,4.75322442]
[1726449339723,4.3732,2286.7,2286.1,4.37424]
[1726449340018,4.37281,2286.9,2286.0,4.75314442]
[1726449340019,4.37281,2286.9,2286.0,0.37882442]
[1726449340174,4.37328,2286.7,2286.0,4.75313442]
[1726449340379,4.37201,2287.3,2285.7,2.5454006]
[1726449340380,4.37422,2286.2,2285.7,0.0771006]
[1726449340578,8.74966,2285.8,2285.7,0.0771006]
[1726449340807,13.12449,2285.8,2285.7,0.0771006]
[1726449341011,8.74966,2285.8,2285.7,0.0771006]
[1726449341368,4.44518334,2285.8,2285.7,0.0771006]
[1726449341492,0.07035334,2285.8,2285.7,0.0771006]
[1726449341678,4.37483,2285.8,2285.7,0.0771006]
[1726449341878,8.82001334,2285.8,2285.7,0.0771006]
[1726449342089,13.19484334,2285.8,2285.7,0.0771006]
[1726449342589,22.35607334,2285.8,2285.7,0.0771006]
[1726449342979,17.43124334,2285.8,2285.7,0.0771006]
[1726449343205,17.88781051,2285.8,2285.7,0.0771006]
[1726449343404,17.88781051,2285.8,2284.2,2.4086]
[1726449343405,4.37738,2284.5,2284.2,2.4086]
[1726449343605,4.37738,2284.5,2283.1,11.42999137]
[1726449343606,4.37738,2284.5,2283.6,4.37894]
[1726449343827,4.37703,2284.7,2284.0,4.37823]
[1726449343828,0.07035334,2284.4,2284.0,4.37823]
[1726449343987,4.37703,2284.7,2284.0,4.37816]
[1726449344182,0.07035334,2284.6,2284.0,4.37815]
[1726449344482,0.07035334,2284.6,2284.2,4.37774]
[1726449344713,6.00656717,2285.8,2283.3,4.37953]
[1726449344714,1.1593,2285.4,2284.4,2.4086]
[1726449345019,4.3755,2285.5,2284.8,4.3766]
[1726449345318,4.37516,2285.7,2285.1,4.37612]
[1726449345477,0.45656717,2285.8,2284.8,0.43766]
[1726449345682,0.45656717,2285.8,2285.3,2.4086]
[1726449345983,4.3752,2285.7,2285.3,2.4086]
[1726449346179,8.75038,2285.7,2285.1,4.37616]
[1726449346381,0.45656717,2285.8,2284.9,2.4086]
[1726449346613,4.37552,2285.5,2284.9,2.4086]
[1726449347194,4.37561,2285.4,2284.9,2.4086]
[1726449347393,4.37561,2285.4,2284.3,4.4547506]
[1726449347394,0.45656717,2285.8,2284.5,2.4722]
[1726449347593,4.37595,2285.3,2284.5,2.4722]
[1726449347807,0.45656717,2285.8,2284.5,2.4722]
[1726449347808,4.37554,2285.5,2284.8,8.75336]
[1726449348009,0.45656717,2285.8,2284.8,0.875336]
[1726449348010,4.37591,2285.3,2284.8,0.875336]
[1726449348213,0.45656717,2285.8,2284.5,2.4722]
[1726449348214,4.37637,2285.0,2284.5,2.4722]
[1726449348402,4.37637,2285.0,2284.5,2.77167757]
[1726449348710,0.45656717,2285.8,2284.5,2.77167757]
[1726449348711,4.37531,2285.6,2284.8,4.37659]
[1726449348925,4.37507,2285.7,2284.5,2.4722]
[1726449349241,3.45656717,2285.8,2284.5,2.4722]
[1726449349242,4.37609,2285.2,2284.5,2.4722]
[1726449349404,4.37653,2285.0,2284.5,2.72713006]
[1726449349736,4.37697,2284.7,2284.5,2.4722]
[1726449350041,4.37603,2285.2,2284.3,0.0771006]
[1726449350042,4.37732,2284.5,2284.3,0.0771006]
[1726449350251,4.37725,2284.6,2284.3,0.0771006]
[1726449351331,5.53453,2285.6,2284.3,4.4546906]
[1726449351623,4.3759,2285.3,2284.4,0.44546906]
[1726449351800,8.75266,2285.1,2284.4,4.37737]
[1726449352000,0.45656717,2285.8,2284.7,4.37684]
[1726449352329,0.45656717,2285.8,2284.8,0.664184]
[1726449352679,1.1593,2285.6,2284.3,0.0771006]
[1726449352985,2.45656717,2285.8,2284.3,0.0771006]
[1726449352986,8.75502,2284.4,2284.3,0.0771006]
[1726449353266,4.37751,2284.4,2284.3,0.0771006]
[1726449353432,4.37746,2284.5,2284.3,0.0771006]
[1726449353773,13.13253,2284.4,2284.3,0.0771006]
[1726449354061,28.59685,2284.4,2284.3,0.0771006]
[1726449354261,36.20240086,2284.4,2284.3,0.0771006]
[1726449354477,19.29183,2284.4,2284.3,0.0771006]
[1726449355026,12.91432,2284.4,2284.3,0.0771006]
[1726449355222,4.37751,2284.4,2284.3,0.0771006]
[1726449355723,8.75502,2284.4,2284.3,0.0771006]
[1726449356169,4.37751,2284.4,2284.3,0.0771006]
[1726449356462,4.43887513,2284.4,2284.3,0.0771006]
[1726449356676,0.06136513,2284.4,2284.3,0.0771006]
[1726449356842,4.43887513,2284.4,2284.3,0.0771006]
[1726449357028,8.81638513,2284.4,2284.3,0.0771006]
[1726449357727,4.43887513,2284.4,2284.3,0.0771006]
[1726449358427,4.89559217,2284.4,2284.3,0.0771006]
[1726449358641,9.27310217,2284.4,2284.3,0.0771006]
[1726449359430,0.51808217,2284.4,2284.3,6.8168006]
[1726449359736,0.45671704,2284.4,2284.3,11.87618066]
[1726449360045,4.3761,2285.2,2284.5,4.37717]
[1726449360046,4.37609,2285.2,2284.5,4.37717]
[1726449360259,0.06136513,2285.1,2284.7,4.37679]
[1726449360501,4.37704,2284.7,2284.3,3.12078066]
[1726449360783,8.75502,2284.4,2284.3,0.0771006]
[1726449361146,13.19389513,2284.4,2284.3,0.0771006]
[1726449361546,8.81638513,2284.4,2284.3,0.0771006]
[1726449361972,4.43887513,2284.4,2284.3,0.0771006]
[1726449362190,8.81638513,2284.4,2284.3,0.0771006]
[1726449362394,4.43887513,2284.4,2284.3,0.0771006]
[1726449362560,0.06136513,2284.4,2284.3,0.0771006]
[1726449362761,8.81638513,2284.4,2284.3,0.0771006]
[1726449362964,0.06136513,2284.4,2284.3,0.0771006]
[1726449363365,0.4566239,2285.3,2285.0,4.37631]
[1726449363576,0.4566239,2285.3,2285.0,0.437631]
[1726449363794,0.4566239,2285.3,2285.2,11.17586]
[1726449364001,4.37297,2286.8,2285.4,4.37559]
[1726449364002,4.37345,2286.6,2285.4,4.37559]
[1726449364212,0.45647159,2286.4,2286.1,4.37412]
[1726449364487,0.45647159,2286.4,2286.3,4.37387]
[1726449364705,6.44413,2287.4,2286.6,4.3733]
[1726449364901,0.45630446,2287.2,2286.7,4.37299]
[1726449365109,0.45630446,2287.2,2286.8,0.08744916]
[1726449365385,6.68987,2288.9,2287.9,4.37075]
[1726449365584,6.68987,2288.9,2286.7,3.0]
[1726449365585,4.37021,2288.3,2287.8,2.3799]
[1726449365746,2.3209,2288.9,2287.8,2.3799]
[1726449366147,2.3209,2288.9,2286.9,2.3799]
[1726449366148,2.3209,2288.0,2286.9,2.3799]
[1726449366389,4.3718,2287.4,2286.9,2.3799]
[1726449366582,4.37186,2287.4,2286.5,4.37343]
[1726449366796,4.37255,2287.0,2286.2,6.68062]
[1726449366963,4.3735,2286.5,2286.2,2.3066]
[1726449367150,4.37313,2286.7,2286.2,2.3066]
[1726449367585,4.37281,2286.9,2286.2,6.91116]
[1726449367967,4.37174,2287.5,2286.5,4.37343]
[1726449368172,4.37089,2287.9,2286.8,2.3066]
[1726449368372,6.7073,2288.4,2286.8,2.3066]
[1726449368373,4.37062,2288.1,2287.4,4.37164]
[1726449368597,4.37059,2288.1,2287.3,0.08742185]
[1726449368818,4.37063,2288.0,2287.4,4.37175]
[1726449369127,4.37059,2288.1,2287.4,4.37175]
[1726449369269,4.36975,2288.5,2287.6,4.37126]
[1726449369474,4.37024,2288.3,2287.7,0.087405]
[1726449369682,4.37024,2288.3,2287.7,4.458485]
[1726449369883,4.36932,2288.7,2287.8,4.45831427]
[1726449370103,4.36984,2288.5,2287.8,4.45831427]
[1726449370421,4.3688,2289.0,2287.6,4.37129]
[1726449370422,4.3689,2289.0,2288.2,4.37012]
[1726449370591,4.3688,2289.0,2287.9,2.4305]
[1726449370804,4.37062,2288.1,2287.9,2.4305]
[1726449371147,0.06619734,2288.0,2287.9,2.4305]
[1726449371277,0.06619734,2288.0,2287.3,2.3373]
[1726449371481,4.37103,2287.8,2287.3,2.3373]
[1726449371714,0.06619734,2287.9,2287.3,6.70925]
[1726449371919,3.0,2288.7,2287.3,2.3373]
[1726449372216,0.06619734,2287.8,2286.9,4.37268]
[1726449372533,0.06619734,2287.7,2286.9,4.37258]
[1726449372817,0.06619734,2287.7,2287.1,2.3373]
[1726449372987,2.3151,2288.8,2287.1,2.3373]
[1726449372988,4.36924,2288.8,2288.0,2.3373]
[1726449373315,0.06414635,2288.7,2288.1,4.45765008]
[1726449373623,0.06414635,2288.7,2288.1,5.57422009]
[1726449373829,0.06414635,2288.7,2288.3,4.36988]
[1726449374034,9.19381995,2289.0,2288.4,0.08737696]
[1726449374182,0.06428637,2288.6,2288.4,0.53310266]
[1726449374486,0.06428637,2288.5,2288.2,4.37024]
[1726449374689,4.36925,2288.8,2288.3,0.08738582]
[1726449374690,4.36926,2288.8,2288.3,0.08738582]
[1726449374914,0.06428637,2288.4,2288.3,0.08738582]
[1726449375100,4.36926,2288.8,2288.3,0.08738582]
[1726449375310,0.06428637,2288.4,2288.2,4.37011]
[1726449375485,4.36751,2289.7,2288.2,4.37011]
[1726449375486,0.06214349,2288.7,2288.3,2.3137]
[1726449375682,4.36952,2288.6,2288.3,2.3137]
[1726449375885,0.06214349,2288.6,2288.3,2.3137]
[1726449376097,4.3698,2288.5,2287.8,4.37086]
[1726449376336,0.06214349,2288.5,2287.9,4.37063]
[1726449376488,0.06214349,2288.5,2287.8,4.37086]
[1726449376489,0.06214349,2288.5,2288.1,2.3926]
[1726449376694,4.43183349,2288.5,2288.1,2.3926]
[1726449377213,0.06214349,2288.5,2288.1,2.3926]
[1726449377424,0.06214349,2288.5,2288.2,0.08738859]
[1726449377618,4.36899,2288.9,2288.2,4.45750859]
[1726449377922,4.36929,2288.7,2288.3,0.08737955]
[1726449378241,4.36983,2288.5,2288.1,2.3926]
[1726449378527,0.45605209,2289.1,2288.1,2.3926]
[1726449378528,0.06345066,2288.4,2288.1,2.3926]
[1726449378711,4.3702,2288.3,2288.1,2.3926]
[1726449378954,4.43365066,2288.3,2288.1,2.3926]
[1726449379638,4.43365066,2288.3,2287.1,11.42227137]
[1726449379639,4.37093,2287.9,2287.3,2.4968]
[1726449379842,4.3708,2288.0,2287.4,0.0874325]
[1726449380001,4.3708,2288.0,2287.3,2.4968]
[1726449380002,4.3712,2287.7,2287.3,2.4968]
[1726449380210,0.06345066,2287.9,2287.3,2.4968]
[1726449380411,5.4761,2288.5,2286.9,2.4968]
[1726449380731,4.37099,2287.9,2286.9,2.4968]
[1726449380942,3.0,2288.4,2286.9,2.4968]
[1726449380943,4.37136,2287.7,2287.0,4.45994109]
[1726449381241,4.37053,2288.1,2287.1,0.08742107]
[1726449381401,4.37174,2287.5,2287.0,0.24968]
[1726449381609,4.37156,2287.6,2286.9,6.8694]
[1726449381809,4.43540066,2287.4,2286.9,3.621015]
[1726449382006,4.37147,2287.6,2286.9,3.621015]
[1726449382328,4.37072,2288.0,2287.4,4.37175]
[1726449382533,4.37072,2288.0,2287.5,0.08741681]
[1726449382749,4.37031,2288.2,2287.6,4.37135]
[1726449382901,4.36958,2288.6,2287.8,4.371]
[1726449383250,4.36971,2288.5,2287.5,2.394]
[1726449383447,4.36971,2288.5,2287.1,0.78221883]
[1726449383448,4.37133,2287.7,2287.1,2.394]
[1726449383598,4.37215,2287.2,2287.1,2.394]
[1726449383946,4.37215,2287.2,2286.4,4.37352]
[1726449383947,4.37261,2287.0,2286.5,2.443]
[1726449384240,4.37261,2287.0,2286.5,2.880352]
[1726449384449,8.74451,2287.2,2286.5,2.880352]
[1726449384738,4.37223,2287.2,2286.6,0.7253872]
[1726449384940,4.37223,2287.2,2286.6,5.0986472]
[1726449385741,4.37223,2287.2,2286.6,9.4718272]
[1726449385948,4.3715,2287.6,2286.8,2.4584]
[1726449386129,0.06345066,2287.1,2286.9,4.37259]
[1726449386307,8.74301,2287.6,2287.0,5.055639]
[1726449386572,4.3715,2287.6,2287.0,5.055629]
[1726449386760,4.37111,2287.8,2287.1,1.03024888]
[1726449386966,4.37075,2288.0,2287.3,4.37177]
[1726449387204,8.74152,2288.0,2287.4,0.52459869]
[1726449387501,4.36993,2288.4,2287.4,0.437177]
[1726449387708,4.37088,2287.9,2286.8,2.4584]
[1726449387876,4.3714,2287.6,2287.0,4.37238]
[1726449388202,2.4297,2288.5,2287.2,6.67565]
[1726449388203,4.37072,2288.0,2287.2,6.67565]
[1726449388368,4.37072,2288.0,2287.2,6.67573]
[1726449388369,4.37112,2287.8,2287.2,6.67573]
[1726449388573,4.37071,2288.0,2287.3,0.08742333]
[1726449388766,6.79944,2288.5,2287.3,0.08742333]
[1726449388767,4.37114,2287.8,2287.3,0.08742333]
[1726449389079,4.37105,2287.8,2287.2,2.3036]
[1726449389278,4.37105,2287.8,2287.2,3.08604691]
[1726449389487,4.37036,2288.2,2287.4,4.37161]
[1726449389783,4.37036,2288.2,2287.3,0.08742082]
[1726449389784,4.37158,2287.5,2287.2,2.3036]
[1726449390276,4.37131,2287.7,2287.2,2.3036]
[1726449390478,4.37082,2287.9,2287.2,2.971192]
[1726449390667,4.37048,2288.1,2287.2,2.3036]
[1726449390866,4.37029,2288.2,2287.2,2.3036]
[1726449390867,4.37196,2287.3,2287.2,2.3036]
[1726449391372,4.37104,2287.8,2286.6,2.4657]
[1726449391373,4.37247,2287.1,2286.6,2.4657]
[1726449391713,4.37269,2287.0,2286.6,2.4657]
[1726449392007,2.2654,2287.7,2286.6,2.4657]
[1726449392008,4.37181,2287.4,2286.6,2.4657]
[1726449392210,4.37181,2287.4,2285.8,5.6787593]
[1726449392211,4.37286,2286.9,2286.1,2.4657]
[1726449392387,2.2654,2287.7,2286.2,0.08745681]
[1726449392388,4.37177,2287.5,2286.2,0.08745681]
[1726449392580,4.3726,2287.0,2286.4,2.4642]
[1726449392822,2.86103897,2288.0,2286.4,2.4642]
[1726449392823,4.37303,2286.8,2286.4,2.4642]
[1726449392986,8.74612,2286.8,2286.4,2.4642]
[1726449393185,4.37107,2287.8,2286.4,2.4642]
[1726449393186,4.37269,2287.0,2286.4,2.4642]
[1726449393482,4.37269,2287.0,2286.4,6.83784]
[1726449393792,4.37274,2286.9,2286.4,6.83784]